bitfinex-derivatives/quotes_ETHF0:USTF0_20250224
["timestamp","ask_amount","ask_price","bid_price","bid_amount"]
[1740385639839,3.2078,2685.9,2684.9,3.2078]
[1740385640038,3.2078,2685.3,2684.5,3.2078]
[1740385640245,3.2078,2685.3,2684.5,3.95271]
[1740385640553,0.74492,2684.5,2684.4,0.00558815]
[1740385641145,6.74492,2684.5,2684.4,8.15e-06]
[1740385641342,8.1252,2684.5,2682.9,3.2078]
[1740385641543,3.2078,2683.6,2682.9,3.2078]
[1740385641752,0.74534,2683.0,2682.9,3.2078]
[1740385642149,0.74542,2682.7,2682.6,3.2078]
[1740385642451,3.81358815,2683.2,2682.7,0.00558815]
[1740385642751,0.74533,2683.1,2682.9,3.2078]
[1740385642954,0.00558815,2683.2,2682.7,0.75099815]
[1740385642955,0.00558815,2683.2,2682.7,0.00558815]
[1740385643253,0.7454,2682.8,2682.7,0.00558815]
[1740385644043,7.0088,2682.9,2682.0,3.21114887]
[1740385644252,7.0088,2682.9,2681.5,3.2078]
[1740385644253,3.2078,2682.4,2681.5,3.2078]
[1740385644456,0.00558815,2683.2,2681.5,3.2078]
[1740385644457,3.2078,2682.3,2681.5,3.2078]
[1740385644656,3.896,2682.2,2681.0,3.2078]
[1740385644947,3.896,2682.2,2680.0,2.1521]
[1740385644948,3.905,2682.1,2681.6,3.2078]
[1740385645251,0.00558815,2682.1,2681.7,3.2078]
[1740385645446,0.00558815,2682.1,2682.0,3.2078]
[1740385645749,0.00558815,2682.1,2680.5,25.0247]
[1740385645750,0.00558815,2682.1,2681.9,3.2078]
[1740385645949,0.00558815,2682.1,2681.8,0.74566]
[1740385646150,0.00558815,2682.1,2681.3,3.2078]
[1740385646449,0.00558815,2682.1,2682.0,3.95342]
[1740385646852,0.00558815,2682.1,2682.0,3.2078]
[1740385647247,0.00558815,2682.1,2682.0,3.95342]
[1740385647853,0.00558815,2682.1,2682.0,3.2078]
[1740385648259,0.00558815,2682.1,2682.0,3.95342]
[1740385648551,3.925,2682.9,2682.0,3.2078]
[1740385648552,3.2078,2682.9,2682.0,3.2078]
[1740385648746,0.74545,2682.7,2682.1,0.74557]
[1740385649053,0.74565,2681.9,2681.8,0.00558815]
[1740385649256,3.916,2682.2,2681.8,0.00558815]
[1740385649456,3.2078,2682.0,2680.9,3.2078]
[1740385649645,3.2078,2682.0,2681.3,3.2078]
[1740385649845,3.2078,2682.0,2681.6,3.2078]
[1740385650049,3.2078,2682.0,2681.2,3.2078]
[1740385650257,7.1248,2682.0,2680.8,3.2078]
[1740385650457,0.74582,2681.3,2680.8,3.2078]
[1740385650655,0.74598,2680.7,2680.5,3.2078]
[1740385650963,3.926,2681.3,2680.5,3.2078]
[1740385651152,0.00558815,2680.9,2680.5,3.2078]
[1740385651547,0.74601,2680.6,2680.5,3.2078]
[1740385651758,0.74615,2680.1,2680.0,3.2078]
[1740385651959,3.954,2680.6,2680.0,3.2078]
[1740385652254,3.954,2680.6,2679.3,0.17941613]
[1740385652255,0.00558815,2680.9,2680.5,3.2078]
[1740385652456,0.00558815,2680.9,2680.1,3.2078]
[1740385652753,0.746,2680.7,2680.1,3.2078]
[1740385652951,0.00558815,2680.9,2680.8,0.74595]
[1740385653157,0.00558815,2680.9,2680.7,0.74597]
[1740385653356,0.00558815,2680.9,2680.1,1.86532]
[1740385653357,0.00558815,2680.9,2680.2,3.957]
[1740385653553,0.00558815,2680.9,2680.8,0.74595]
[1740385653952,0.74599,2680.7,2680.4,3.95385]
[1740385654159,0.00558815,2680.9,2680.4,3.2078]
[1740385654363,0.00558815,2680.9,2680.7,0.74597]
[1740385654656,0.00558815,2680.9,2680.4,3.2078]
[1740385654657,0.00558815,2680.9,2680.8,0.74595]
[1740385654856,3.2078,2682.7,2680.8,7.1598]
[1740385655055,3.2078,2682.7,2682.0,3.2078]
[1740385655355,3.2078,2683.3,2683.1,0.74529]
[1740385655560,3.2078,2683.3,2682.4,3.2078]
[1740385655866,0.74539,2682.9,2682.3,0.74551]
[1740385656160,3.21338815,2683.1,2682.6,0.00558815]
[1740385656350,3.2078,2682.7,2682.6,0.00558815]
[1740385656755,3.2078,2682.7,2682.6,0.75103815]
[1740385657163,0.00558815,2683.1,2682.6,0.00558815]
[1740385657562,3.21338815,2683.1,2682.9,0.74535]
[1740385657857,3.21338815,2683.1,2682.6,0.00558815]
[1740385657858,0.00558815,2683.1,2682.6,0.00558815]
[1740385658065,8.15e-06,2683.1,2683.0,3.95314]
[1740385658663,8.15e-06,2683.1,2683.0,9.95314]
[1740385658854,8.15e-06,2683.1,2683.0,9.2078]
[1740385659054,8.15e-06,2683.1,2683.0,0.74534]
[1740385660055,8.15e-06,2683.1,2682.9,3.2078]
[1740385660258,0.74537,2682.9,2682.6,0.00558815]
[1740385660452,3.2078,2682.7,2682.6,0.00558815]
[1740385661052,3.95322,2682.7,2682.6,0.00558815]
[1740385661555,11.07137,2682.7,2681.7,0.7457]
[1740385661756,3.2078,2682.0,2681.7,0.7457]
[1740385661959,3.2078,2682.0,2681.6,3.2078]
[1740385662363,0.74566,2681.9,2681.4,0.74576]
[1740385662556,3.2078,2681.7,2681.1,2.1827]
[1740385662756,3.2078,2681.8,2681.3,0.00558815]
[1740385663156,0.00558815,2681.7,2681.6,0.74573]
[1740385663367,3.20744009,2681.8,2681.7,0.7457]
[1740385663562,3.2078,2682.2,2682.1,0.74558]
[1740385663762,3.2078,2682.2,2681.4,3.2078]
[1740385664061,3.2078,2681.8,2681.7,0.74567]
[1740385664466,3.2078,2681.8,2681.7,0.7457]
[1740385664965,0.00558815,2682.0,2681.5,0.00558815]
[1740385665261,0.75121815,2682.0,2681.6,0.74572]
[1740385665464,0.00558815,2682.0,2681.9,0.74565]
[1740385666064,0.74568,2681.8,2681.5,0.00558815]
[1740385666263,0.00558815,2682.0,2681.5,0.00558815]
[1740385666765,0.00558815,2682.0,2681.8,0.74566]
[1740385666969,0.00558815,2682.0,2681.9,0.74565]
[1740385667165,0.00558815,2682.0,2681.5,0.00558815]
[1740385667367,0.00558815,2682.0,2681.9,0.74565]
[1740385667567,0.00558815,2682.0,2681.5,0.00558815]
[1740385667762,3.21338815,2682.0,2681.5,0.00558815]
[1740385668161,3.21338815,2682.0,2681.7,0.74569]
[1740385668365,3.2078,2681.9,2681.5,0.00558815]
[1740385668567,0.74573,2681.6,2681.5,0.00558815]
[1740385669264,3.2078,2681.9,2681.5,0.00558815]
[1740385669265,0.00558815,2682.0,2681.5,0.00558815]
[1740385669461,3.2078,2683.1,2682.8,0.74538]
[1740385669664,3.2078,2683.1,2682.3,5.07164]
[1740385669869,3.2078,2683.1,2682.9,0.74534]
[1740385670077,3.2078,2683.1,2682.1,1.86398]
[1740385670264,3.2078,2683.1,2682.3,3.2078]
[1740385670459,3.2078,2683.9,2682.6,3.2078]
[1740385670666,3.2078,2683.5,2683.2,0.74528]
[1740385670969,3.2078,2683.5,2683.0,0.00558815]
[1740385670970,0.00558815,2683.5,2683.0,0.00558815]
[1740385671364,3.95311,2683.1,2683.0,0.00558815]
[1740385671774,3.2078,2683.1,2683.0,0.00558815]
[1740385672068,0.00558815,2683.5,2683.0,0.00558815]
[1740385672774,3.21338815,2683.5,2683.2,0.74528]
[1740385673070,3.95860815,2683.5,2683.1,0.74529]
[1740385673269,3.2078,2683.2,2683.0,0.00558815]
[1740385673570,0.00558815,2683.5,2683.0,0.00558815]
[1740385673874,0.74523,2683.4,2683.1,0.7453]
[1740385674172,0.00558815,2683.5,2683.0,0.00558815]
[1740385674368,0.00558815,2683.5,2683.3,0.74525]
[1740385674571,3.2078,2683.4,2683.1,0.74531]
[1740385674762,3.95303,2683.4,2683.1,0.74531]
[1740385674963,0.00558815,2683.5,2683.4,0.74523]
[1740385675770,3.2078,2684.4,2683.3,4.032]
[1740385675966,3.2078,2684.4,2683.5,1.863]
[1740385676166,3.2078,2684.4,2684.2,0.74499]
[1740385676362,3.2078,2684.4,2683.7,3.2078]
[1740385676568,3.95277,2684.4,2683.5,1.86301]
[1740385676773,3.2078,2684.7,2683.6,1.86293]
[1740385676975,3.2078,2684.7,2684.6,0.7449]
[1740385677171,0.00558815,2684.4,2684.1,3.2078]
[1740385677370,0.00558815,2684.4,2684.0,4.018]
[1740385677371,0.00558815,2684.4,2684.3,0.74498]
[1740385677573,12.53289767,2685.4,2684.3,0.74498]
[1740385677574,12.53289767,2685.4,2685.3,0.7447]
[1740385677777,12.53289767,2685.4,2685.0,0.74476]
[1740385678079,3.95255,2685.2,2684.8,0.74483]
[1740385678274,3.95255,2685.2,2684.4,2.245]
[1740385678275,3.2078,2684.9,2684.4,2.245]
[1740385678776,3.95821815,2684.9,2684.5,0.74492]
[1740385678967,3.21338815,2684.9,2684.4,2.245]
[1740385679772,3.2078,2684.6,2684.2,20.675]
[1740385680173,0.74503,2684.1,2684.0,0.00558815]
[1740385680366,3.2078,2684.3,2684.0,0.00558815]
[1740385680773,0.74503,2684.1,2684.0,0.00558815]
[1740385681875,0.74503,2684.1,2683.2,20.67]
[1740385681876,0.74526,2683.3,2683.2,20.67]
[1740385682378,5.3852,2684.3,2683.2,26.67]
[1740385682574,3.2078,2683.9,2683.4,0.74523]
[1740385682773,3.95291,2683.9,2683.5,0.74519]
[1740385683071,3.2078,2683.6,2683.4,0.00558815]
[1740385683276,0.00558815,2683.9,2683.4,0.00558815]
[1740385683475,0.00558815,2683.9,2683.8,0.74512]
[1740385683981,0.00558815,2683.9,2683.5,2.15293815]
[1740385684372,0.00558815,2683.9,2683.8,0.74512]
[1740385684574,3.2078,2684.7,2683.8,3.2078]
[1740385684776,3.2078,2684.7,2684.6,0.7449]
[1740385685377,3.2078,2685.1,2684.6,6.0]
[1740385685673,0.7448,2685.0,2684.6,4.70588]
[1740385685877,3.21338815,2685.1,2684.6,3.96658815]
[1740385686079,3.95814815,2685.1,2684.7,0.74485]
[1740385686279,3.21338815,2685.1,2685.0,0.74478]
[1740385686579,0.00558815,2685.1,2685.0,0.74478]
[1740385686972,0.00558815,2685.1,2685.0,6.74478]
[1740385687173,0.00558815,2685.1,2685.0,0.74478]
[1740385687780,3.2078,2685.6,2685.5,0.74465]
[1740385687981,3.2078,2685.6,2685.2,3.935]
[1740385688179,3.2078,2686.3,2685.2,3.935]
[1740385688379,0.74455,2685.9,2685.5,0.74464]
[1740385688575,3.2078,2685.6,2684.9,2.2174]
[1740385688782,0.74466,2685.5,2684.9,6.1464]
[1740385688973,0.00349965,2685.5,2684.9,6.1464]
[1740385689178,0.00349965,2685.5,2684.9,2.2174]
[1740385689379,0.74814965,2685.5,2685.1,0.74474]
[1740385689680,3.9525,2685.3,2684.9,2.9622]
[1740385689886,0.00349965,2685.5,2685.2,0.74473]
[1740385690087,0.00349965,2685.5,2685.2,0.74472]
[1740385690286,0.00349965,2685.5,2684.9,2.2174]
[1740385690785,0.00349965,2685.5,2685.2,0.74471]
[1740385691090,0.00349965,2685.5,2685.1,0.74475]
[1740385691091,0.74815965,2685.5,2685.1,0.74475]
[1740385691283,0.74815965,2685.5,2684.7,2.2619]
[1740385691284,3.2078,2685.3,2684.7,2.2619]
[1740385691581,3.2078,2685.3,2684.6,0.00558815]
[1740385691782,3.2078,2685.0,2684.6,0.00558815]
[1740385691977,3.95267,2684.7,2684.6,0.00558815]
[1740385692380,3.2078,2684.7,2683.6,3.895]
[1740385692684,3.2078,2683.9,2683.3,22.8966]
[1740385692979,3.2078,2683.6,2683.3,22.8966]
[1740385693683,3.2078,2683.6,2683.2,0.00558815]
[1740385693884,3.95306,2683.3,2683.2,0.00558815]
[1740385694487,3.2078,2683.6,2683.3,0.74524]
[1740385694686,3.2078,2683.6,2683.2,0.00558815]
[1740385695089,0.00558815,2683.7,2683.6,0.74517]
[1740385695476,0.00558815,2683.7,2683.6,3.869]
[1740385695677,0.74518,2683.6,2683.2,0.75086815]
[1740385695883,0.00558815,2683.7,2683.2,0.00558815]
[1740385696181,3.2078,2683.5,2683.2,0.00558815]
[1740385696582,0.74525,2683.4,2683.2,0.00558815]
[1740385697089,3.2078,2683.5,2683.2,0.75085815]
[1740385697387,3.2078,2683.5,2683.2,0.00558815]
[1740385697590,3.2078,2683.5,2683.2,0.75085815]
[1740385697890,3.2078,2683.5,2683.2,0.00558815]
[1740385698587,0.74525,2683.4,2683.2,0.00558815]
[1740385698789,0.74526,2683.3,2683.2,0.00558815]
[1740385699487,0.74535,2683.0,2682.6,0.74543]
[1740385699684,3.2078,2683.1,2682.9,0.74537]
[1740385699886,3.2078,2683.6,2682.6,3.2078]
[1740385700082,3.2078,2683.3,2683.0,0.74533]
[1740385700281,3.2078,2683.6,2682.9,0.74535]
[1740385700485,3.2078,2683.6,2682.9,0.00558815]
[1740385700685,3.2078,2683.6,2683.0,0.74532]
[1740385700884,0.74527,2683.3,2682.9,0.00558815]
[1740385701086,3.95307,2683.3,2682.9,0.00558815]
[1740385701288,3.2078,2683.3,2682.9,0.00558815]
[1740385701498,3.95306,2683.3,2682.9,0.75093815]
[1740385701790,0.74529,2683.2,2682.9,0.75093815]
[1740385701986,0.74529,2683.2,2682.9,0.00558815]
[1740385702186,3.2078,2683.3,2682.9,0.00558815]
[1740385702493,0.74531,2683.2,2682.9,0.00558815]
[1740385702788,0.74534,2683.0,2682.9,0.00558815]
[1740385702984,3.2078,2683.3,2682.9,0.00558815]
[1740385703384,0.00558815,2683.7,2682.9,0.00558815]
[1740385703385,3.95314,2683.0,2682.9,0.00558815]
[1740385704186,3.95314,2683.0,2682.9,8.15e-06]
[1740385704384,3.95314,2683.0,2681.8,2.92058]
[1740385704385,9.2078,2683.0,2681.8,2.17492]
[1740385704586,9.2078,2683.0,2681.8,0.01312]
[1740385704587,0.74565,2681.9,2681.8,0.01312]
[1740385704782,3.2078,2682.3,2681.8,0.01312]
[1740385704987,1.86378,2682.4,2681.8,0.01312]
[1740385704988,0.74565,2681.9,2681.8,0.01312]
[1740385705291,3.2078,2682.3,2681.8,0.01312]
[1740385705492,5.4096,2682.6,2681.8,0.01312]
[1740385705792,0.00558815,2682.3,2681.8,3.79970815]
[1740385705993,3.21338815,2682.3,2681.8,3.79970815]
[1740385706197,0.00558815,2682.3,2682.1,0.74559]
[1740385706490,0.74558,2682.2,2681.8,4.54536815]
[1740385706690,0.00558815,2682.3,2682.2,0.74556]
[1740385707084,3.785,2683.5,2682.2,6.74556]
[1740385707285,3.95304,2683.4,2682.4,3.2078]
[1740385707493,3.95304,2683.4,2683.1,0.7453]
[1740385707494,3.2078,2683.4,2683.1,0.7453]
[1740385707692,3.2078,2683.4,2682.7,3.2078]
[1740385707992,3.2078,2683.6,2683.5,0.7452]
[1740385708191,0.74516,2683.7,2683.1,3.778]
[1740385708489,3.778,2684.6,2683.3,3.21338815]
[1740385708490,0.00558815,2683.8,2683.3,3.21338815]
[1740385708792,0.00558815,2683.8,2683.3,0.00558815]
[1740385709294,0.00558815,2683.8,2683.7,0.74515]
[1740385709489,0.00558815,2683.8,2683.3,0.00558815]
[1740385709697,0.74519,2683.6,2683.3,0.00558815]
[1740385709882,3.2078,2683.6,2683.3,0.00558815]
[1740385710686,0.74523,2683.4,2683.3,0.00558815]
[1740385710893,2.87571,2683.5,2683.3,0.00558815]
[1740385711085,0.74523,2683.4,2683.3,0.00558815]
[1740385711280,3.99355,2683.5,2682.2,3.75]
[1740385711487,0.74536,2683.0,2682.6,0.74544]
[1740385711797,3.2078,2683.1,2682.4,0.74549]
[1740385712089,0.74552,2682.4,2682.1,20.669]
[1740385712293,1.86335,2683.1,2682.1,20.669]
[1740385712294,3.2078,2682.5,2682.1,20.669]
[1740385712496,3.2078,2682.5,2682.3,0.74553]
[1740385712694,3.2078,2682.5,2682.2,0.74555]
[1740385713090,3.2078,2682.5,2682.1,20.669]
[1740385713485,3.2078,2682.8,2682.1,20.669]
[1740385713685,3.9532,2682.8,2682.4,0.74549]
[1740385713891,3.2078,2682.8,2682.6,0.74545]
[1740385714490,5.8725,2683.5,2682.4,3.2078]
[1740385714491,3.2078,2683.4,2682.4,3.2078]
[1740385714795,0.74546,2682.6,2682.3,3.734]
[1740385714996,3.2078,2682.5,2682.3,3.734]
[1740385715191,0.74549,2682.5,2682.3,3.734]
[1740385715390,3.2078,2682.8,2682.3,3.734]
[1740385715588,0.74552,2682.4,2682.1,20.669]
[1740385715790,0.74555,2682.3,2682.1,20.669]
[1740385716008,0.74559,2682.1,2682.0,0.00558815]
[1740385716292,0.74565,2681.9,2681.8,0.01312]
[1740385716499,0.74579,2681.4,2681.0,0.74588]
[1740385716798,3.2078,2681.8,2680.9,5.07262]
[1740385716997,3.2078,2681.8,2680.8,2.15293815]
[1740385717396,0.7457,2681.7,2681.0,3.2078]
[1740385717596,0.00558815,2681.6,2681.3,0.7458]
[1740385717795,0.00558815,2681.6,2681.5,0.74576]
[1740385718397,0.00558815,2681.6,2681.3,3.2078]
[1740385719000,0.00558815,2681.6,2681.5,0.74576]
[1740385719602,3.2078,2682.5,2681.5,6.0]
[1740385719790,3.2078,2682.5,2682.4,0.74551]
[1740385719997,3.2078,2682.5,2682.1,0.74558]
[1740385720301,3.2078,2682.5,2682.0,40.8]
[1740385720497,3.2078,2682.5,2682.4,0.74551]
[1740385720698,3.21338815,2682.5,2682.4,0.74551]
[1740385720895,0.00558815,2682.5,2682.4,4.44651]
[1740385721200,3.2078,2683.6,2683.1,0.74529]
[1740385721408,0.74522,2683.5,2683.1,0.74529]
[1740385721596,3.95299,2683.6,2683.2,0.74528]
[1740385721799,3.2078,2683.6,2682.6,3.2078]
[1740385721995,3.2078,2683.6,2682.7,1.86357]
[1740385722298,0.74523,2683.4,2683.0,0.74533]
[1740385722502,0.00558815,2683.4,2682.8,0.00558815]
[1740385723203,0.00558815,2683.4,2683.0,3.2078]
[1740385723505,0.00558815,2683.4,2683.1,3.687]
[1740385723702,0.74528,2683.3,2683.1,3.687]
[1740385723901,3.2078,2683.3,2682.8,0.00558815]
[1740385724204,3.2078,2683.1,2682.8,0.00558815]
[1740385724403,3.95312,2683.1,2682.8,0.00558815]
[1740385725006,3.2078,2683.1,2682.8,0.00558815]
[1740385725302,0.74537,2682.9,2682.8,0.00558815]
[1740385725900,0.74535,2683.0,2682.8,0.00558815]
[1740385726410,3.2078,2683.1,2682.8,0.00558815]
[1740385726603,0.74537,2682.9,2682.8,0.00558815]
[1740385728905,9.643,2682.9,2682.1,20.673]
[1740385729101,9.643,2682.9,2681.6,3.2078]
[1740385729102,3.2078,2682.3,2681.6,3.2078]
[1740385729408,0.74558,2682.2,2681.8,0.74566]
[1740385729604,0.74558,2682.2,2681.6,3.2078]
[1740385730109,3.2078,2682.3,2681.6,5.07771815]
[1740385730413,0.7456,2682.1,2681.7,4.37768]
[1740385730706,3.95335,2682.3,2681.9,0.74563]
[1740385730910,3.2078,2682.3,2682.0,0.74561]
[1740385731407,3.2078,2682.3,2681.8,0.74566]
[1740385731605,3.2078,2682.3,2681.7,0.74569]
[1740385731910,0.7456,2682.1,2681.7,0.74568]
[1740385732210,0.7456,2682.1,2681.8,0.74567]
[1740385732409,3.2078,2682.0,2681.6,3.63758815]
[1740385732602,0.74566,2681.9,2681.6,0.00558815]
[1740385732907,3.95343,2682.0,2681.6,0.00558815]
[1740385733106,0.7457,2681.7,2681.6,0.00558815]
[1740385733305,3.9535,2681.7,2681.6,0.00558815]
[1740385733998,3.2078,2681.7,2681.6,0.00558815]
[1740385734206,0.7457,2681.7,2681.6,0.00558815]
[1740385734708,3.21338815,2682.0,2681.6,0.00558815]
[1740385735210,0.00558815,2682.0,2681.6,3.21338815]
[1740385735517,0.00558815,2682.0,2681.6,0.00558815]
[1740385735811,0.74565,2681.9,2681.7,40.8]
[1740385736111,3.95901815,2682.0,2681.7,40.8]
[1740385736310,0.74565,2681.9,2681.6,0.00558815]
[1740385736610,0.74567,2681.9,2681.6,0.00558815]
[1740385737006,3.21338815,2682.0,2681.6,0.00558815]
[1740385737209,3.2078,2681.7,2681.6,0.00558815]
[1740385737405,3.9535,2681.7,2681.6,0.00558815]
[1740385737814,0.00558815,2682.0,2681.6,0.00558815]
[1740385738809,0.00558815,2682.0,2681.7,3.566]
[1740385739207,0.00558815,2682.0,2681.9,0.74565]
[1740385739505,0.75120815,2682.0,2681.7,4.31169]
[1740385739709,0.00558815,2682.0,2681.7,4.31169]
[1740385739910,0.74567,2681.9,2681.7,3.566]
[1740385740211,0.00558815,2682.0,2681.8,3.556]
[1740385740612,0.00558815,2682.0,2681.7,3.563]
[1740385740808,0.7457,2681.7,2681.6,0.00558815]
[1740385741313,0.74569,2681.8,2681.6,0.00558815]
[1740385741508,0.7457,2681.7,2681.6,0.00558815]
[1740385742616,3.2078,2681.9,2681.6,0.00558815]
[1740385743013,0.00558815,2682.0,2681.9,0.74565]
[1740385743519,0.00558815,2682.0,2681.6,3.21338815]
[1740385743721,0.74566,2681.9,2681.6,3.21338815]
[1740385744019,0.00558815,2682.0,2681.6,3.21338815]
[1740385744220,0.00558815,2682.0,2681.6,3.95909815]
[1740385744409,0.74565,2681.9,2681.6,3.95909815]
[1740385744611,0.00558815,2682.0,2681.6,3.21338815]
[1740385745015,0.00558815,2682.0,2681.8,0.74567]
[1740385745211,0.00558815,2682.0,2681.6,3.21338815]
[1740385745521,0.00558815,2682.0,2681.9,0.74565]
[1740385747414,0.00558815,2682.0,2681.6,0.00558815]
[1740385747619,0.74569,2681.8,2681.6,0.00558815]
[1740385747821,3.21338815,2682.0,2681.6,0.00558815]
[1740385748026,0.7457,2681.7,2681.6,0.00558815]
[1740385748220,3.9535,2681.7,2681.6,0.00558815]
[1740385749925,3.2078,2681.7,2681.6,0.00092789]
[1740385750224,0.00558815,2682.0,2681.9,0.74565]
[1740385750525,0.00558815,2682.0,2681.8,3.498]
[1740385750716,0.74565,2681.9,2681.8,3.498]
[1740385751129,0.7457,2681.7,2681.6,0.00092789]
[1740385752817,3.2078,2681.9,2681.6,0.00092789]
[1740385753323,0.7457,2681.7,2681.6,0.00092789]
[1740385753629,0.74569,2681.8,2681.6,0.00092789]
[1740385753924,0.7457,2681.7,2681.6,0.00092789]
[1740385754328,3.2078,2681.9,2681.6,0.00092789]
[1740385755029,0.74569,2681.8,2681.6,0.00092789]
[1740385755222,0.00558815,2682.0,2681.6,0.00092789]
[1740385755824,0.00558815,2682.0,2681.7,40.8]
[1740385756030,0.00558815,2682.0,2681.9,0.74565]
[1740385756221,0.00558815,2682.0,2681.9,3.46]
[1740385756421,0.75120815,2682.0,2681.9,3.46]
[1740385757129,0.00558815,2682.0,2681.6,0.00092789]
[1740385757326,0.7457,2681.7,2681.6,0.00092789]
[1740385757830,0.00558815,2682.0,2681.6,0.00092789]
[1740385758129,0.00558815,2682.0,2681.9,0.74565]
[1740385758530,0.00558815,2682.0,2681.9,4.20065]
[1740385758734,0.00558815,2682.0,2681.9,3.455]
[1740385759033,0.00558815,2682.0,2681.9,4.20065]
[1740385759227,0.00558815,2682.0,2681.9,3.455]
[1740385759536,0.75120815,2682.0,2681.9,3.455]
[1740385760033,0.00558815,2682.0,2681.9,3.455]
[1740385760430,0.75120815,2682.0,2681.9,3.455]
[1740385760629,0.7457,2681.7,2681.6,0.00092789]
[1740385761432,3.9535,2681.7,2681.6,0.00092789]
[1740385762932,9.9535,2681.7,2681.6,7.89e-06]
[1740385763232,9.2078,2681.7,2680.2,3.2078]
[1740385763440,3.2078,2680.7,2680.2,3.2078]
[1740385763732,2.1547,2681.8,2680.1,20.681]
[1740385763733,2.1547,2681.8,2680.5,3.2078]
[1740385763933,4.06457214,2681.7,2680.6,3.423]
[1740385764137,0.85677214,2681.7,2681.1,3.2078]
[1740385764332,0.7458,2681.4,2680.9,0.75149815]
[1740385764631,6.21927214,2681.8,2680.9,0.00558815]
[1740385764834,0.7459,2681.0,2680.9,0.00558815]
[1740385765941,3.9537,2681.0,2680.9,0.00558815]
[1740385766841,0.7459,2681.0,2680.9,0.00558815]
[1740385767633,3.9537,2681.0,2680.9,0.00558815]
[1740385771334,0.74589,2681.1,2680.9,0.00558815]
[1740385771539,3.9537,2681.0,2680.9,0.00558815]
[1740385772633,0.74581,2681.3,2680.9,0.75150815]
[1740385772837,3.2078,2681.4,2680.9,0.00558815]
[1740385773037,0.74588,2681.1,2680.9,0.00558815]
[1740385773237,3.2078,2681.4,2680.9,0.00558815]
[1740385773238,0.7459,2681.0,2680.9,0.00558815]
[1740385773448,3.2078,2681.1,2680.1,3.37]
[1740385773646,0.74595,2680.9,2680.3,3.2078]
[1740385773945,3.2078,2681.4,2680.3,3.2078]
[1740385774140,3.2078,2681.1,2680.3,3.2078]
[1740385774341,3.2078,2681.4,2680.6,3.2078]
[1740385774543,0.74597,2680.8,2680.6,3.2078]
[1740385774738,1.86461,2681.2,2680.6,3.364]
[1740385774939,0.74598,2680.7,2680.6,3.364]
[1740385775146,0.74603,2680.5,2680.4,0.00558815]
[1740385775339,3.2078,2681.2,2680.4,0.00558815]
[1740385775546,0.74603,2680.5,2680.4,0.00558815]
[1740385775850,0.74598,2680.7,2680.4,0.00558815]
[1740385776145,3.2078,2681.2,2680.4,0.00558815]
[1740385776346,3.2078,2681.2,2680.4,0.75164815]
[1740385776643,0.74594,2680.9,2680.5,0.74603]
[1740385776945,0.74597,2680.8,2680.4,0.75163815]
[1740385777244,3.2078,2681.2,2680.4,0.00558815]
[1740385777451,0.74602,2680.6,2680.4,0.00558815]
[1740385777749,1.86459,2681.3,2680.5,0.74603]
[1740385778049,1.86459,2681.3,2680.5,0.74602]
[1740385778248,1.86459,2681.3,2680.4,0.75164815]
[1740385778249,14.14441302,2680.5,2680.4,0.75164815]
[1740385778444,14.14441302,2680.5,2680.4,3.95944815]
[1740385778639,14.14441302,2680.5,2680.4,9.95944815]
[1740385778947,0.74574,2681.6,2680.4,9.21338815]
[1740385779144,0.74577,2681.5,2681.0,3.95367]
[1740385779452,2.1547,2681.8,2681.1,4.08686]
[1740385779655,0.00558815,2682.0,2681.4,3.2078]
[1740385779952,0.00558815,2682.0,2681.9,3.2078]
[1740385780149,0.00558815,2682.0,2681.9,6.5458]
[1740385780454,0.00558815,2682.0,2681.9,3.338]
[1740385780747,0.00558815,2682.0,2681.5,2.3561]
[1740385780943,0.00558815,2682.0,2681.1,20.687]
[1740385780944,0.74583,2681.3,2681.1,24.024]
[1740385781140,0.74584,2681.2,2681.1,24.024]
[1740385781546,0.74584,2681.2,2681.1,20.687]
[1740385781946,3.2078,2681.4,2681.1,20.687]
[1740385782156,0.74584,2681.2,2681.1,20.687]
[1740385782753,0.74599,2680.7,2680.5,6.5338]
[1740385782950,0.74599,2680.7,2680.5,3.326]
[1740385783152,3.2078,2680.9,2680.3,3.2078]
[1740385783359,2.2967,2681.2,2680.3,6.5338]
[1740385783652,0.74602,2680.6,2680.3,6.5338]
[1740385783857,2.2967,2681.2,2680.3,6.5338]
[1740385784055,2.2967,2681.2,2680.6,3.2078]
[1740385784352,0.74595,2680.8,2680.3,6.5338]
[1740385784545,3.2078,2681.3,2680.3,6.5338]
[1740385784745,0.74599,2680.7,2680.3,6.5338]
[1740385785252,3.2078,2681.4,2680.6,3.2078]
[1740385785447,5.5045,2681.7,2680.6,3.2078]
[1740385785644,5.5045,2681.7,2681.2,0.74584]
[1740385785853,0.00558815,2682.0,2681.1,6.5238]
[1740385786049,0.00558815,2682.0,2681.4,3.2078]
[1740385786653,1.86412,2681.9,2681.2,5.5097]
[1740385786851,3.21338815,2682.0,2681.2,5.5097]
[1740385787154,3.2078,2681.7,2680.9,3.312]
[1740385787342,0.7459,2681.0,2680.9,3.312]
[1740385787542,0.7459,2681.0,2680.6,3.2078]
[1740385787856,0.74599,2680.7,2680.5,3.312]
[1740385788048,1.86461,2681.2,2680.5,3.312]
[1740385788254,3.2078,2681.3,2680.5,3.312]
[1740385788552,0.74595,2680.8,2680.5,3.312]
[1740385788755,0.74601,2680.6,2680.5,3.312]
[1740385789261,0.74597,2680.8,2680.5,3.312]
[1740385789553,3.2078,2681.2,2680.5,3.312]
[1740385790248,0.74597,2680.8,2680.5,3.312]
[1740385790454,3.2078,2681.2,2680.5,3.312]
[1740385790747,3.2078,2680.9,2680.4,0.00558815]
[1740385790955,0.74603,2680.5,2680.4,0.00558815]
[1740385791148,0.746,2680.7,2680.4,0.00558815]
[1740385791347,0.74593,2680.9,2680.4,3.21338815]
[1740385791547,5.07232,2681.4,2680.4,3.95942815]